bitfinex/quotes_SOLUSD_20250522
["timestamp","ask_amount","ask_price","bid_price","bid_amount"]
[1747944545864,5.61356236,178.14,178.07,26.0]
[1747944546069,5.61356236,178.14,178.07,31.61575504]
[1747944546371,5.61356236,178.14,178.07,26.0]
[1747944546565,5.61356236,178.14,178.07,31.61568825]
[1747944546767,5.61356236,178.14,178.08,6.3842]
[1747944549476,14.03254489,178.16,178.08,6.3842]
[1747944551702,19.64547708,178.16,178.08,6.3842]
[1747944552291,19.64547708,178.16,178.08,11.99961901]
[1747944552478,19.64547708,178.16,178.08,6.3842]
[1747944552673,19.64547708,178.16,178.08,11.99963565]
[1747944553395,19.64547708,178.16,178.08,6.3842]
[1747944553896,19.64547708,178.16,178.08,11.99960754]
[1747944554116,5.61293219,178.16,178.08,11.99960754]
[1747944554789,5.61293219,178.16,178.08,37.99960754]
[1747944554989,5.61230216,178.18,178.09,5.75716982]
[1747944555192,5.61230216,178.18,178.1,38.88]
[1747944556788,19.64251109,178.19,178.1,44.49476268]
[1747944557895,14.03052389,178.19,178.1,44.49476268]
[1747944558717,14.03052389,178.19,178.11,26.0]
[1747944559004,5.61167227,178.2,178.12,1.5776]
[1747944559701,5.61167227,178.2,178.13,26.0]
[1747944560119,14.02918069,178.2,178.13,26.0]
[1747944562585,5.61104253,178.22,178.13,31.61378117]
[1747944562907,19.63864885,178.22,178.13,26.0]
[1747944563497,14.02760632,178.22,178.13,26.0]
[1747944565007,14.02760632,178.22,178.16,26.0]
[1747944567407,14.02760632,178.22,178.13,26.0]
[1747944567709,14.02760632,178.22,178.14,26.0]
[1747944568909,14.02760632,178.22,178.08,7.8964]
[1747944568910,15.61338098,178.18,178.08,7.8964]
[1747944569109,15.61338098,178.18,178.08,46.7564]
[1747944569294,15.61338098,178.19,178.11,26.0]
[1747944570317,19.64305757,178.18,178.11,26.0]
[1747944570702,35.25643855,178.18,178.11,26.0]
[1747944575189,35.25643855,178.18,178.11,31.61433351]
[1747944575190,5.61230216,178.18,178.11,31.61433351]
[1747944576309,14.02865439,178.21,178.11,31.61433351]
[1747944581393,5.61104253,178.22,178.12,0.14216157]
[1747944581595,5.61009817,178.25,178.16,26.0]
[1747944581795,5.61009817,178.25,178.17,64.72]
[1747944582603,35.24762309,178.26,178.17,64.72]
[1747944583197,15.61338098,178.23,178.17,64.72]
[1747944584718,19.63864885,178.22,178.17,64.72]
[1747944586705,14.02760632,178.22,178.17,64.72]
[1747944587806,5.61041292,178.24,178.17,64.72]
[1747944588326,19.63644523,178.24,178.17,64.72]
[1747944589623,5.61041292,178.24,178.17,64.72]
[1747944590532,5.61041292,178.24,178.17,70.33260716]
[1747944590826,5.60978346,178.26,178.17,70.33260716]
[1747944592657,19.63424211,178.26,178.17,70.33260716]
[1747944593026,19.63424211,178.26,178.17,64.72]
[1747944593329,18.64964886,178.25,178.17,26.0]
[1747944593627,34.26302984,178.25,178.18,38.72]
[1747944594131,19.63424211,178.26,178.18,64.72]
[1747944594316,5.60978346,178.26,178.21,26.0]
[1747944594630,18.64964886,178.28,178.21,26.0]
[1747944594631,5.60946878,178.27,178.21,26.0]
[1747944594844,19.63314073,178.27,178.21,26.0]
[1747944596534,19.63314073,178.27,178.18,40.3697]
[1747944596909,19.63314073,178.27,178.18,45.98195729]
[1747944598320,19.63314073,178.27,178.19,6.4266]
[1747944598729,5.60946878,178.27,178.2,26.0]
[1747944600215,5.60883953,178.29,178.22,26.0]
[1747944601732,19.63093835,178.29,178.22,26.0]
[1747944605819,19.63314073,178.27,178.2,26.0]
[1747944607753,19.63314073,178.27,178.22,26.0]
[1747944608333,5.60946878,178.27,178.22,26.0]
[1747944609464,19.63038025,178.3,178.22,26.0]
[1747944609936,15.61338098,178.26,178.18,38.72]
[1747944610129,34.40519141,178.24,178.18,38.72]
[1747944610452,0.14216157,178.21,178.18,38.72]
[1747944611743,18.64964886,178.22,178.18,38.72]
[1747944611950,5.61135738,178.21,178.18,38.72]
[1747944621543,5.61135738,178.21,178.18,38.72]
[1747944622463,38.28719584,178.23,178.18,38.72]
[1747944624643,0.14216157,178.22,178.18,38.72]
[1747944626775,5.61135738,178.21,178.18,38.72]
[1747944628972,5.61104253,178.22,178.18,38.72]
[1747944631681,19.63864885,178.22,178.18,38.72]
[1747944633350,5.60946878,178.27,178.18,70.33225169]
[1747944633671,5.60946878,178.27,178.18,103.97225169]
[1747944634267,5.60946878,178.27,178.21,26.0]
[1747944635360,5.60946878,178.27,178.21,31.61131643]
[1747944635654,5.60925657,178.28,178.21,31.61131643]
[1747944637693,5.60925657,178.28,178.22,33.64]
[1747944637879,136.0,178.29,178.22,33.64]
[1747944637880,5.60789591,178.32,178.25,26.0]
[1747944638065,5.60789591,178.32,178.26,64.4]
[1747944638066,18.64964886,178.31,178.26,64.4]
[1747944639678,5.60852495,178.3,178.26,64.4]
[1747944640582,19.62983734,178.3,178.26,64.4]
[1747944640879,18.64964886,178.29,178.26,64.4]
[1747944641458,18.64964886,178.29,178.26,38.4]
[1747944641661,5.60915413,178.28,178.26,38.4]
[1747944643882,5.60852495,178.3,178.26,38.4]
[1747944650072,5.60789591,178.32,178.26,45.67612506]
[1747944650773,183.77884554,178.36,178.29,26.0]
[1747944650774,5.60695262,178.35,178.29,26.0]
[1747944650978,141.60671849,178.36,178.29,26.0]
[1747944651297,5.60671849,178.36,178.29,26.0]
[1747944651468,5.60671849,178.36,178.31,26.0]
[1747944651671,5.60632393,178.37,178.32,38.4]
[1747944654297,19.62213376,178.37,178.32,38.4]
[1747944654472,18.64964886,178.36,178.32,38.4]
[1747944654973,5.60632393,178.37,178.32,38.4]
[1747944656587,38.2695827,178.39,178.32,38.4]
[1747944663392,0.14216157,178.38,178.32,38.4]
[1747944664775,5.60443871,178.43,178.32,44.00780989]
[1747944664994,18.64964886,178.42,178.35,26.0]
[1747944666977,5.60506698,178.41,178.36,26.0]
[1747944668283,5.60506698,178.41,178.35,26.0]
[1747944668472,5.60506698,178.41,178.37,26.0]
[1747944668677,5.60286866,178.48,178.4,26.0]
[1747944668878,18.79181043,178.47,178.41,26.0]
[1747944669599,18.64964886,178.46,178.41,26.0]
[1747944671403,18.64964886,178.46,178.39,27.6607]
[1747944671604,18.64964886,178.44,178.39,26.0]
[1747944672275,19.61333706,178.45,178.39,26.0]
[1747944675689,18.64964886,178.44,178.37,38.24]
[1747944676006,18.64964886,178.44,178.37,64.24]
[1747944677009,5.60443871,178.43,178.37,64.24]
[1747944685595,19.61553549,178.43,178.37,64.24]
[1747944689834,5.60443871,178.43,178.37,64.24]
[1747944690006,5.60443871,178.43,178.4,26.0]
[1747944691741,19.61333706,178.45,178.4,26.0]
[1747944693742,0.14216157,178.48,178.4,26.0]
[1747944693743,24.25283146,178.47,178.4,26.0]
[1747944693910,38.26078797,178.47,178.4,26.0]
[1747944695415,10.08147313,178.46,178.38,26.0]
[1747944695626,0.14216157,178.46,178.38,26.0]
[1747944695845,18.64964886,178.44,178.38,26.0]
[1747944697343,0.14216157,178.43,178.38,26.0]
[1747944697752,19.6166349,178.42,178.38,26.0]
[1747944699429,14.01002017,178.45,178.38,26.0]
[1747944700042,19.61383076,178.45,178.38,26.0]
[1747944702245,35.15108149,178.45,178.38,26.0]
[1747944703530,19.61383076,178.45,178.38,26.0]
[1747944705017,19.61553549,178.43,178.38,26.0]
[1747944707745,5.60443871,178.43,178.38,26.0]
[1747944709654,19.61274362,178.46,178.38,26.0]
[1747944709854,19.61274362,178.46,178.38,31.60592245]
[1747944710148,5.60349658,178.46,178.39,33.6]
[1747944711253,19.61004033,178.48,178.39,33.6]
[1747944712724,5.60286866,178.48,178.4,1.6288]
[1747944713348,5.60255476,178.49,178.41,6.4902]
[1747944714855,5.60255476,178.49,178.41,12.09524158]
[1747944715858,19.60705718,178.51,178.41,12.09524158]
[1747944717242,19.60705718,178.51,178.41,6.4902]
[1747944718256,5.60192706,178.51,178.44,26.0]
[1747944718466,5.60192706,178.51,178.45,38.1]
[1747944719549,19.60404931,178.54,178.45,38.1]
[1747944722039,18.79181043,178.53,178.45,38.1]
[1747944722546,15.53725073,178.51,178.44,64.1]
[1747944723647,19.60784313,178.5,178.44,64.1]
[1747944725272,35.14509386,178.5,178.44,64.1]
[1747944725451,35.14509386,178.5,178.44,38.1]
[1747944726171,19.61004033,178.48,178.44,38.1]
[1747944726542,18.79181043,178.47,178.44,38.1]
[1747944726747,34.32906116,178.47,178.4,1.6288]
[1747944727060,34.32906116,178.47,178.39,38.1]
[1747944727244,34.32906116,178.47,178.4,26.0]
[1747944728168,5.60349658,178.46,178.4,26.0]
[1747944728380,5.60286866,178.48,178.42,26.0]
[1747944729054,19.61004033,178.48,178.42,26.0]
[1747944730377,34.32906116,178.47,178.4,26.0]
[1747944730970,18.79181043,178.47,178.4,26.0]
[1747944732060,5.60349658,178.46,178.4,26.0]
[1747944732669,19.61223803,178.46,178.4,26.0]
[1747944733866,5.60349658,178.46,178.4,26.0]
[1747944734063,24.39467909,178.48,178.4,26.0]
[1747944734880,38.40185076,178.48,178.4,26.0]
[1747944736478,53.93910149,178.48,178.4,26.0]
[1747944736962,15.53725073,178.47,178.4,26.0]
[1747944737276,66.4161941,178.48,178.39,63.98]
[1747944737487,15.53725073,178.46,178.39,63.98]
[1747944738171,19.61333706,178.45,178.39,63.98]
[1747944740366,18.79181043,178.44,178.39,63.98]
[1747944742573,5.60443871,178.43,178.39,63.98]
[1747944744755,18.79181043,178.44,178.39,63.98]
[1747944744756,5.60412463,178.44,178.39,63.98]
[1747944745685,5.60412463,178.44,178.39,37.98]
[1747944745686,38.26408507,178.44,178.39,37.98]
[1747944750466,5.60412463,178.44,178.39,37.98]
[1747944750984,5.60389929,178.45,178.4,26.0]
[1747944751862,5.60389929,178.45,178.4,59.6]
[1747944752062,19.61166882,178.47,178.4,65.20535779]
[1747944752284,5.6031826,178.47,178.4,65.20535779]
[1747944752671,169.74216157,178.51,178.41,1.5851]
[1747944752672,5.60255476,178.49,178.41,1.5851]
[1747944752873,5.60255476,178.49,178.45,26.0]
[1747944753083,5.60255476,178.49,178.45,64.0]
[1747944753793,5.60224089,178.5,178.45,64.0]
[1747944757288,24.25188975,178.5,178.45,64.0]
[1747944757679,38.25749199,178.5,178.45,64.0]
[1747944763691,53.79474272,178.5,178.45,38.0]
[1747944763999,15.53725073,178.48,178.45,38.0]
[1747944764183,15.53725073,178.48,178.43,26.0]
[1747944764377,15.53725073,178.46,178.4,37.88]
[1747944765375,5.60381059,178.45,178.4,37.88]
[1747944766079,5.60381059,178.45,178.4,71.48]
[1747944767193,5.6031826,178.47,178.4,71.48]
[1747944770696,5.6031826,178.47,178.41,26.0]
[1747944774905,19.60935459,178.49,178.41,26.0]
[1747944780329,18.79181043,178.48,178.41,26.0]
[1747944781382,19.60935459,178.49,178.41,26.0]
[1747944781984,14.00679983,178.49,178.41,26.0]
[1747944783510,19.60935459,178.49,178.41,26.0]
[1747944784401,19.60935459,178.49,178.41,31.60500509]
[1747944785590,14.00679983,178.49,178.41,31.60500509]
[1747944787114,14.00679983,178.49,178.42,37.88]
[1747944787495,19.60935459,178.49,178.42,37.88]
[1747944788130,18.79181043,178.48,178.42,37.88]
[1747944789490,5.6031826,178.47,178.42,37.88]
[1747944797527,5.60255476,178.49,178.42,37.88]
[1747944801521,5.60255476,178.49,178.43,63.78]
[1747944806233,28.58918173,178.48,178.43,63.78]
[1747944806835,18.64964886,178.48,178.43,63.78]
[1747944808030,5.6031826,178.47,178.43,63.78]
[1747944808410,19.61113911,178.47,178.43,63.78]
[1747944808633,19.61113911,178.47,178.43,37.78]
[1747944811226,19.61113911,178.47,178.41,63.78]
[1747944811627,5.6031826,178.47,178.41,63.78]
[1747944814430,18.64964886,178.46,178.41,63.78]
[1747944815416,5.60381059,178.45,178.41,63.78]
[1747944823065,5.6031826,178.47,178.41,63.78]
[1747944824651,18.64964886,178.47,178.41,63.78]
[1747944825970,5.60349658,178.46,178.41,63.78]
[1747944828480,5.60286866,178.48,178.41,69.38495737]
[1747944828963,5.60286866,178.48,178.42,33.6]
[1747944835171,5.60286866,178.48,178.43,37.66]
[1747944838356,5.60286866,178.48,178.44,26.0]
[1747944839282,24.25188975,178.5,178.44,26.0]
[1747944840363,46.64087308,178.67,178.47,1.5833]
[1747944840364,5.60067208,178.55,178.47,1.5833]
[1747944840570,9.6001818,178.56,178.51,26.0]
[1747944840881,9.6001818,178.56,178.52,37.66]
[1747944842177,3.99974441,178.56,178.52,37.66]
[1747944842580,5.60054406,178.56,178.52,37.66]
[1747944843165,5.60054406,178.56,178.52,71.24]
[1747944843858,18.64964886,178.59,178.52,71.24]
[1747944843859,5.59973121,178.58,178.52,71.24]
[1747944846680,5.59973121,178.58,178.55,26.0]
[1747944847897,5.59973121,178.58,178.52,71.24]
[1747944848992,18.64964886,178.57,178.52,37.66]
[1747944849165,28.58918173,178.57,178.52,37.66]
[1747944849485,28.58918173,178.57,178.47,89.68646767]
[1747944849676,5.60035842,178.56,178.51,37.64]
[1747944849989,19.60125447,178.56,178.51,37.64]
[1747944850184,19.60125447,178.56,178.49,26.0]
[1747944850394,19.60125447,178.56,178.51,37.64]
[1747944855066,14.00089605,178.56,178.51,37.64]
[1747944855692,14.00089605,178.56,178.51,63.64]
[1747944856875,14.00089605,178.56,178.54,26.0]
[1747944857489,14.00089605,178.56,178.52,26.0]
[1747944860300,14.00089605,178.56,178.51,37.64]
[1747944860301,18.64964886,178.55,178.51,37.64]
[1747944860680,28.58918173,178.55,178.51,37.64]
[1747944861190,0.14216157,178.54,178.51,37.64]
[1747944862191,5.6012995,178.53,178.51,37.64]
[1747944863374,18.64964886,178.52,178.51,37.64]
[1747944863898,18.64964886,178.52,178.48,26.0]
[1747944864390,5.60192706,178.51,178.48,26.0]
[1747944865174,19.60674471,178.51,178.46,63.52]
[1747944867703,5.60192706,178.51,178.46,63.52]
[1747944867883,5.60192706,178.51,178.47,33.58]
[1747944868080,5.60192706,178.51,178.5,26.0]
[1747944869101,5.6012995,178.53,178.5,26.0]
[1747944869691,5.60067208,178.55,178.5,26.0]
[1747944870077,5.60067208,178.55,178.5,59.58]
[1747944870775,19.60235228,178.55,178.5,59.58]
[1747944871186,5.60067208,178.55,178.5,59.58]
[1747944871683,5.60035842,178.56,178.5,59.58]
[1747944872899,5.60035842,178.56,178.51,37.52]
[1747944873091,5.60035842,178.56,178.54,26.0]
[1747944873997,5.59973121,178.58,178.54,26.0]
[1747944878283,19.59905924,178.58,178.54,26.0]
[1747944884517,5.59973121,178.58,178.54,26.0]
[1747944887714,5.59973121,178.58,178.53,63.52]
[1747944887902,5.59973121,178.58,178.53,37.52]
[1747944888099,19.59905924,178.58,178.53,37.52]
[1747944888312,19.59905924,178.58,178.53,63.52]
[1747944891709,0.14216157,178.56,178.49,1.5696]
[1747944891916,18.64964886,178.55,178.5,37.38]
[1747944892210,18.64964886,178.55,178.5,63.38]
[1747944892729,34.16454662,178.55,178.5,37.38]
[1747944893800,19.6034502,178.54,178.5,37.38]
[1747944896124,5.60098577,178.54,178.5,37.38]
[1747944898824,5.60035842,178.56,178.5,37.38]
[1747944899398,5.60035842,178.56,178.51,26.0]
[1747944900030,5.6000448,178.57,178.51,26.0]
[1747944900226,5.59973497,178.58,178.52,1.525]
[1747944900405,18.79181043,178.61,178.53,26.0]
[1747944900604,18.64964886,178.61,178.53,26.0]
[1747944901337,24.24843952,178.61,178.53,59.58]
[1747944902610,38.24541617,178.61,178.53,59.58]
[1747944903330,53.76437967,178.61,178.53,59.58]
[1747944903538,53.76437967,178.61,178.54,37.4]
[1747944905650,19.59796181,178.59,178.54,37.4]
[1747944906943,18.64964886,178.58,178.54,37.4]
[1747944907114,34.16861236,178.58,178.54,37.4]
[1747944907314,18.64964886,178.58,178.54,37.4]
[1747944909336,5.6000448,178.57,178.54,37.4]
[1747944918153,5.6000448,178.57,178.53,26.0]
[1747944918449,19.6001568,178.57,178.53,26.0]
[1747944919344,19.6001568,178.57,178.52,37.26]
[1747944919345,0.14216157,178.54,178.52,37.26]
[1747944919737,0.14216157,178.54,178.47,37.26]
[1747944919936,0.14216157,178.54,178.47,63.26]
[1747944919937,19.60564642,178.52,178.47,63.26]
[1747944920148,19.60564642,178.52,178.47,37.26]
[1747944920352,18.64964886,178.51,178.47,37.26]
[1747944920849,0.14216157,178.5,178.47,37.26]
[1747944922020,5.60255476,178.49,178.47,37.26]
[1747944924150,18.64964886,178.48,178.47,37.26]
[1747944925137,18.79181043,178.48,178.47,37.26]
[1747944925535,18.64964886,178.48,178.47,37.26]
[1747944925734,5.60255476,178.49,178.47,37.26]
[1747944926249,5.60224089,178.5,178.47,37.26]
[1747944930476,14.00403316,178.52,178.47,37.26]
[1747944930477,19.60564642,178.52,178.47,37.26]
[1747944946577,14.00403316,178.52,178.47,37.26]
[1747944951678,5.6012995,178.53,178.47,37.26]
[1747944951975,5.6012995,178.53,178.48,1.6252]
[1747944952354,5.60035842,178.56,178.48,1.6252]
[1747944952555,5.60035842,178.56,178.49,6.5029]
[1747944952963,0.14216157,178.63,178.52,26.0]
[1747944953286,26.0,178.62,178.53,37.18]
[1747944953471,28.72750093,178.63,178.53,37.18]
[1747944953671,19.59686449,178.6,178.53,37.18]
[1747944954771,13.99776035,178.6,178.53,37.18]
[1747944959055,32.64740921,178.6,178.53,37.18]
[1747944961684,38.24651335,178.6,178.53,37.18]
[1747944970593,53.75377445,178.6,178.53,37.18]
[1747944973375,18.79181043,178.57,178.53,37.18]
[1747944973577,34.29907153,178.57,178.53,37.18]
[1747944973790,15.5072611,178.56,178.53,37.18]
[1747944974497,18.79181043,178.53,178.48,37.16]
[1747944974682,15.5072611,178.52,178.48,37.16]
[1747944975282,19.60564642,178.52,178.48,37.16]
[1747944977697,14.00403316,178.52,178.48,37.16]
[1747944981903,19.60564642,178.52,178.48,37.16]
[1747944982105,18.79181043,178.51,178.48,37.16]
[1747944982404,34.29907153,178.51,178.45,26.0]
[1747944984215,19.60784313,178.5,178.45,26.0]
[1747944984913,19.60784313,178.5,178.43,37.06]
[1747944984914,34.29907153,178.49,178.43,37.06]
[1747944985109,15.5072611,178.48,178.43,37.06]
[1747944985794,15.64942267,178.47,178.43,37.06]
[1747944986197,5.60349658,178.46,178.43,37.06]
[1747944990019,14.00868525,178.47,178.43,37.06]
[1747944994428,5.60286866,178.48,178.44,32.5984]
[1747944996517,18.79181043,178.49,178.44,26.0]
[1747944996703,18.79181043,178.49,178.43,38.6924]
[1747944997206,34.29907153,178.49,178.43,37.06]
[1747944998538,19.61004033,178.48,178.43,37.06]
[1747944999522,5.60286866,178.48,178.43,37.06]
[1747945000537,5.60224089,178.5,178.43,37.06]
[1747945001136,19.60784313,178.5,178.43,37.06]
[1747945002832,5.60224089,178.5,178.46,26.0]
[1747945003240,5.60161326,178.52,178.46,32.0477]
[1747945003740,5.60067208,178.55,178.5,26.0]
[1747945003909,19.60235228,178.55,178.51,37.06]
[1747945004635,14.0016802,178.55,178.51,37.06]
[1747945004823,14.0016802,178.55,178.48,26.0]
[1747945005021,14.0016802,178.55,178.5,26.0]
[1747945005805,5.60035842,178.56,178.5,26.0]
[1747945006335,19.60125447,178.56,178.5,26.0]
[1747945008722,18.79181043,178.55,178.5,26.0]
[1747945008911,19.6034502,178.54,178.5,26.0]
[1747945009113,19.6034502,178.54,178.49,37.06]
[1747945009752,18.79181043,178.53,178.49,37.06]
[1747945009952,18.79181043,178.53,178.47,36.96]
[1747945011355,19.60564642,178.52,178.47,36.96]
[1747945012033,18.79181043,178.51,178.47,36.96]
[1747945013029,5.60224089,178.5,178.47,36.96]
[1747945023171,19.60564642,178.52,178.47,36.96]
[1747945025974,35.11290752,178.52,178.47,36.96]
[1747945026477,34.29907153,178.51,178.45,36.96]
[1747945027773,19.60784313,178.5,178.45,36.96]
[1747945031670,18.79181043,178.49,178.45,36.96]
[1747945031973,34.29907153,178.49,178.45,36.96]
[1747945032153,18.79181043,178.49,178.45,36.96]
[1747945032554,5.60286866,178.48,178.45,36.96]
[1747945032762,21.11012976,178.48,178.45,36.96]
[1747945032957,15.5072611,178.46,178.41,1.5046]
[1747945033373,18.64964886,178.45,178.41,1.5046]
[1747945033680,18.64964886,178.45,178.4,62.96]
[1747945033880,15.5072611,178.45,178.4,62.96]
[1747945034079,15.5072611,178.45,178.4,26.0]
[1747945034255,15.5072611,178.45,178.39,36.96]
[1747945034582,19.61443621,178.44,178.39,36.96]
[1747945036878,14.01031158,178.44,178.39,36.96]
[1747945038880,19.61443621,178.44,178.39,36.96]
[1747945043684,14.01031158,178.44,178.39,36.96]
[1747945044878,29.51757268,178.44,178.39,36.96]
[1747945045266,34.29907153,178.43,178.39,36.96]
[1747945045990,5.60475283,178.42,178.39,36.96]
[1747945047878,35.123896,178.42,178.37,1.6498]
[1747945048087,15.5072611,178.38,178.3,36.88]
[1747945048263,18.79181043,178.39,178.3,36.88]
[1747945048264,15.5072611,178.35,178.3,36.88]
[1747945048689,34.29907153,178.36,178.3,36.88]
[1747945049393,34.15690996,178.36,178.3,36.88]
[1747945049589,15.5072611,178.36,178.3,36.88]
[1747945049791,18.64964886,178.38,178.3,36.88]
[1747945049998,19.61993384,178.39,178.33,26.0]
[1747945050293,34.15690996,178.38,178.33,26.0]
[1747945050681,34.15690996,178.38,178.3,36.88]
[1747945050682,15.5072611,178.34,178.3,36.88]
[1747945050877,15.5072611,178.33,178.3,36.88]
[1747945051086,34.15690996,178.35,178.3,36.88]
[1747945051389,34.15690996,178.34,178.3,36.88]
[1747945052189,5.60758145,178.33,178.3,36.88]
[1747945057301,14.01886612,178.34,178.3,36.88]
[1747945058377,5.60695262,178.35,178.3,62.88]
[1747945059507,14.01738155,178.35,178.3,62.88]
[1747945063115,19.62433417,178.35,178.3,62.88]
[1747945065427,14.01738155,178.35,178.3,62.88]
[1747945065789,5.60663825,178.36,178.33,26.0]
[1747945067788,19.62150055,178.38,178.33,26.0]
[1747945072517,14.01549091,178.38,178.33,26.0]
[1747945073807,5.60538116,178.4,178.33,26.0]
[1747945074520,14.01345291,178.4,178.33,26.0]
[1747945081412,14.01345291,178.4,178.34,26.0]
[1747945081608,5.60506698,178.41,178.36,26.0]
[1747945081832,5.60506698,178.41,178.37,36.8]
[1747945082136,5.60506698,178.41,178.38,26.0]
[1747945082342,14.01172576,178.43,178.38,26.0]
[1747945084009,14.01172576,178.43,178.4,26.0]
[1747945085621,5.60381059,178.45,178.4,26.0]
[1747945085821,5.60381059,178.45,178.4,30.36795488]
[1747945086133,14.00936079,178.46,178.4,30.36795488]
[1747945088152,14.00936079,178.46,178.4,26.0]
[1747945090348,14.00936079,178.46,178.4,30.57139698]
[1747945090653,14.00936079,178.46,178.4,26.0]
[1747945091348,5.60286866,178.48,178.4,26.0]
[1747945091565,5.60286866,178.48,178.42,26.0]
[1747945091728,19.61004033,178.48,178.44,26.0]
[1747945092421,14.00717167,178.48,178.43,36.78]
[1747945094749,19.61004033,178.48,178.43,36.78]
[1747945100140,19.61004033,178.48,178.43,38.3255]
[1747945100858,5.60286866,178.48,178.43,70.3314]
[1747945101250,14.00521075,178.51,178.43,70.3314]
[1747945103141,14.00521075,178.51,178.46,26.0]
[1747945105058,5.6012995,178.53,178.46,26.0]
[1747945105255,19.6034502,178.54,178.46,26.0]
[1747945106848,14.00246443,178.54,178.46,26.0]
[1747945112559,14.00246443,178.54,178.47,33.58]
[1747945119166,5.60035842,178.56,178.5,26.0]
[1747945119368,5.60035842,178.56,178.51,36.68]
[1747945120066,19.60125447,178.56,178.51,36.68]
[1747945121058,14.00089605,178.56,178.51,36.68]
[1747945128380,29.50815715,178.56,178.51,36.68]
[1747945128584,14.00089605,178.56,178.51,36.68]
[1747945129171,19.60125447,178.56,178.51,36.68]
[1747945132461,34.29907153,178.55,178.5,36.58]
[1747945134061,19.6034502,178.54,178.5,36.58]
[1747945137401,15.5072611,178.51,178.5,36.58]
[1747945137591,15.5072611,178.51,178.45,36.58]
[1747945137769,15.5072611,178.5,178.45,36.58]
[1747945137973,15.5072611,178.49,178.45,36.58]
[1747945138182,5.60286866,178.48,178.45,36.58]
[1747945138508,21.11012976,178.48,178.45,36.58]
[1747945140675,15.5072611,178.47,178.45,36.58]
[1747945141300,34.29907153,178.46,178.41,209.56]
[1747945141496,15.5072611,178.42,178.35,1.5396]
[1747945141804,0.14216157,178.45,178.35,1.5396]
[1747945141980,34.29907153,178.44,178.35,1.5396]
[1747945142299,34.29907153,178.44,178.35,27.5396]
[1747945142475,19.61553549,178.43,178.35,27.5396]
[1747945144401,35.12279659,178.43,178.35,27.5396]
[1747945144596,19.61553549,178.43,178.35,27.5396]
[1747945146973,19.61553549,178.43,178.35,61.1396]
[1747945149073,5.60443871,178.43,178.35,61.1396]
[1747945149489,19.61553549,178.43,178.35,61.1396]
[1747945150598,5.60412463,178.44,178.35,66.74642055]
[1747945150786,5.60412463,178.44,178.36,0.14216157]
[1747945151700,14.00907227,178.46,178.39,26.0]
[1747945151905,14.00907227,178.46,178.4,36.6]
[1747945154298,29.51633337,178.46,178.4,36.6]
[1747945154604,14.00907227,178.46,178.4,36.6]
[1747945155803,19.61256885,178.46,178.4,36.6]
[1747945156100,47.63005175,178.46,178.4,36.6]
[1747945157199,63.13731285,178.46,178.4,36.6]
[1747945157385,47.63005175,178.46,178.4,36.6]
[1747945157885,14.00907227,178.46,178.4,36.6]
[1747945159206,19.61256885,178.46,178.4,36.6]
[1747945161307,14.00907227,178.46,178.4,36.6]
[1747945162297,29.51633337,178.46,178.4,36.6]
[1747945162495,15.5072611,178.44,178.4,36.6]
[1747945163310,5.60443871,178.43,178.4,36.6]
[1747945164599,21.11169981,178.43,178.4,36.6]
[1747945165202,5.60443871,178.43,178.4,36.6]
[1747945166883,21.11169981,178.43,178.4,36.6]
[1747945167797,34.29907153,178.42,178.4,36.6]
[1747945168001,34.29907153,178.42,178.35,64.0996]
[1747945168592,19.61773443,178.41,178.35,64.0996]
[1747945173510,47.64306933,178.41,178.35,64.0996]
[1747945173702,63.15033043,178.41,178.35,62.56]
[1747945175114,63.15033043,178.41,178.35,26.0]